[Event "Sardinia World Festival-A 2024"]
[Site "Orosei"]
[Date "2024.04.29"]
[Round "3.37"]
[White "Di Benedetto, Edoardo"]
[Black "Chitre Arush"]
[Result "1/2-1/2"]
[ECO "E14"]
[WhiteElo "2400"]
[BlackElo "2210"]
[Annotator "TA"]
[PlyCount "156"]
[EventDate "2024.04.26"]
[EventType "swiss"]
[EventCountry "ITA"]
[SourceTitle "playchess.com"]
[Source "ChessBase"]
[SourceQuality "1"]
[TimeControl "40/5400+30:1800+30"]

{[%evp 18,156,11,11,10,5,12,8,18,9,14,0,8,-23,-22,-32,0,-8,0,-31,-42,-50,31,-45,-48,-48,-48,-29,-32,-35,-38,-42,-25,-77,-77,-87,-84,-85,-58,-56,-31,-52,-13,-14,-5,-10,-6,-9,0,-10,10,10,10,9,9,9,9,9,9,9,9,9,9,9,9,0,8,0,10,6,15,4,16,2,11,0,12,8,50,10,10,10,10,10,28,21,21,21,31,31,83,85,206,173,190,183,143,55,55,58,151,43,274,258,29957,29958,29958,29959,29959,29953,29936,8,8,8,88,87,80,0,0,0,0,0,0,0,0,0,0,0,0,0,0,0,0,0,0,0,0,0,0,0,0]} 1. d4 {[%emt 0:00:05]} Nf6 {[%emt 0:02:29]} 2. Nf3 {[%emt 0:00:11]} e6 {[%emt 0:00:18]} 3. e3 {[%emt 0:00:13]} b6 {[%emt 0:00:31]} 4. Bd3 {[%emt 0:00:25]} Bb7 {[%emt 0:00:15]} 5. O-O {[%emt 0:00:17]} Be7 {[%emt 0:00:24]} 6. Nbd2 {[%emt 0:00:57]} c5 {[%emt 0:00:57]} 7. b3 {[%emt 0:01:02]} O-O {[%emt 0:01:31]} 8. Bb2 {[%emt 0:00:18]} d6 {[%emt 0:04:30]} 9. c4 {[%emt 0:01:10]} Nbd7 {[%emt 0:01:03]} 10. Qe2 {[%emt 0:03:03]} cxd4 {[%emt 0:01:14]} 11. exd4 {[%emt 0:02:59]} Re8 {[%emt 0:01:18]} 12. Rfe1 {[%emt 0:02:25]} Nf8 {[%emt 0:01:03]} 13. Rac1 {[%emt 0:06:48]} Rc8 {[%emt 0:03:48]} 14. Ng5 {[%emt 0:12:33]} d5 {[%emt 0:10:42]} 15. Ndf3 {[%emt 0:01:54] Ne5 is the strong threat.} h6 {[%emt 0:09:20]} 16. Nh3 {[%emt 0:00:20]} Bd6 {[%emt 0:01:01]} 17. Ne5 {[%emt 0:01:07]} N6d7 {[%emt 0:02:40]} 18. Qh5 {[%emt 0:05:33]} Nxe5 {[%emt 0:06:20]} 19. dxe5 {[%emt 0:01:05]} Bc5 {[%emt 0:02:57]} (19... dxc4 $15 20. Bxc4 Bb4) 20. Qg4 {[%emt 0:06:00]} (20. cxd5 $14 Qxd5 21. Be4) 20... dxc4 $15 {[%emt 0:04:13]} 21. Bxc4 {[%emt 0:00:28]} Qe7 {[%emt 0:01:16]} 22. Nf4 {[%emt 0:04:16]} Red8 {[%emt 0:02:34]} 23. Rcd1 {[%emt 0:04:12] Dodges Rd2} Rxd1 {[%emt 0:07:23]} (23... Qg5 {simplifies} 24. Qxg5 hxg5 25. Rxd8 Rxd8 26. Nd3 Bd4) 24. Rxd1 {[%emt 0:00:17]} Rd8 {[%emt 0:00:45][%cal Oe7h4] Threatens to win with ...Qh4!} 25. Bd3 {[%emt 0:01:19]} (25. Rd3 $11 {remains equal.}) 25... Rd7 $1 $17 {[%emt 0:08:57]} 26. Be2 {[%emt 0:25:10]} Rxd1+ {[%emt 0:02:04]} 27. Bxd1 {[%emt 0:00:05]} Qd8 {[%emt 0:01:58] Dodges Nd3} 28. Bc3 {[%emt 0:02:38] Prevents Qd2} Be4 {[%emt 0:01:37] Wards off Bc2} 29. Qe2 {[%emt 0:04:24][%cal Ob3b4]} Ng6 {[%emt 0:03:05]} 30. Nxg6 {[%emt 0:00:50]} Bxg6 {[%emt 0:00:46]} 31. b4 {[%emt 0:00:58]} Be7 {[%emt 0:04:06]} 32. Bb3 {[%emt 0:00:31]} Qd7 {[%emt 0:06:06]} 33. Qd2 {[%emt 0:01:38]} Qxd2 {[%emt 0:02:24]} 34. Bxd2 $11 {[%emt 0:00:02][%mdl 4096] Endgame. KBB-KBB} Be4 {[%emt 0:01:26]} 35. f3 {[%emt 0:01:16]} Bc6 {[%emt 0:00:08]} 36. Kf2 {[%emt 0:00:26]} Kf8 {[%emt 0:00:28]} 37. Ke3 {[%emt 0:00:26]} Ke8 {[%emt 0:00:22]} 38. g3 {[%emt 0:00:09]} Kd7 {[%emt 0:00:27]} 39. f4 {[%emt 0:00:19]} Bb5 {[%emt 0:03:49]} 40. Bc3 {[%emt 0:01:16]} g6 {[%emt 0:01:50]} 41. g4 {[%emt 0:30:30]} Bd8 {[%emt 0:30:35]} 42. Bd2 {[%emt 0:02:48]} Be7 {[%emt 0:00:32]} 43. a3 {[%emt 0:03:10]} Bd8 {[%emt 0:00:00]} 44. Bc2 {[%emt 0:00:00]} Be7 {[%emt 0:00:00]} 45. Bd1 {[%emt 0:00:00]} Bd8 {[%emt 0:00:00]} 46. Kd4 {[%emt 0:00:00]} Be7 {[%emt 0:00:00]} 47. f5 {[%emt 0:00:00]} Bf8 {[%emt 0:00:00]} 48. fxg6 {[%emt 0:00:00]} fxg6 {[%emt 0:00:00]} 49. g5 {[%emt 0:00:00]} hxg5 {[%emt 0:00:00]} 50. Bxg5 {[%emt 0:00:00] Black should prevent Bc2.} Kc7 {[%emt 0:00:00]} 51. Bb3 {[%emt 0:00:00]} Bd7 {[%emt 0:00:00]} 52. Ke4 {[%emt 0:00:00]} Bc6+ {[%emt 0:00:00]} 53. Kf4 {[%emt 0:00:00]} Bd7 {[%emt 0:00:00]} (53... a5 $14) 54. Kg4 $16 {[%emt 0:00:00]} Kc8 {[%emt 0:00:00]} (54... Kc6 $16 {is a better defense.}) 55. Bd2 {[%emt 0:00:00] Strongly threatening Kg5.} Be7 {[%emt 0:00:00] [#]} 56. Bh6 $1 {[%emt 0:00:00] And now Bg7 would win.} a5 {[%emt 0:05:47] [#]} 57. bxa5 {[%emt 0:00:00]} (57. Bg5 $1 $16 {[%cal Rg5e7]} Bf8 58. Be3) 57... bxa5 $14 {[%emt 0:00:02]} 58. a4 {[%emt 0:00:00] aiming for Bg5.} Kc7 {[%emt 0:01:39]} (58... Kb7 $1 $14) 59. Bg7 {[%emt 0:00:00]} (59. Bd2 $16) 59... Kd8 $2 {[%emt 0:00:06]} ({Black should play} 59... Be8 $1 $14) 60. Bf6 $18 {[%emt 0:00:00]} Bxf6 {[%emt 0:00:07]} (60... Ke8 $18 61. Kg5 Bb4) 61. exf6 {[%emt 0:00:00] KB-KB} e5+ {[%emt 0:00:51]} 62. Kg5 {[%emt 0:00:00]} Ke8 {[%emt 0:00:05]} 63. Kxg6 {[%emt 0:00:00]} Kf8 {[%emt 0:00:02]} 64. Kg5 $2 {[%emt 0:00:00]} (64. h4 {mates} Bc6 65. Kg5 Be4 66. Be6 Bd3 67. h5 Bh7 68. Bf5 Bg8 69. h6) 64... e4 $11 {[%emt 0:00:32]} 65. Kf4 {[%emt 0:00:00]} e3 {[%emt 0:00:20]} 66. Kxe3 $16 {[%emt 0:00:00] Ke4 would kill now.} Bxa4 {[%emt 0:00:05]} 67. Ba2 {[%emt 0:00:00]} (67. Bxa4 $16 {Intending Ke4 and mate.} Kf7 68. Ke4 Kxf6 69. Kd3) 67... Be8 $11 {[%emt 0:00:35] The position is equal.} 68. Kd4 {[%emt 0:00:00]} Bf7 {[%emt 0:00:06]} 69. Bb1 {[%emt 0:00:00]} a4 {[%emt 0:00:04]} 70. Kc3 {[%emt 0:00:00]} a3 {[%emt 0:00:19]} 71. Be4 {[%emt 0:00:00]} Be6 {[%emt 0:00:05]} 72. Bg6 {[%emt 0:00:00]} Bf7 {[%emt 0:00:04]} 73. Bf5 {[%emt 0:00:00]} Bd5 {[%emt 0:00:04]} 74. Bg6 {[%emt 0:00:00]} Bf7 {[%emt 0:00:06]} (74... a2 $5 75. Kb2 $8 Bf7 $11) 75. Bxf7 {[%emt 0:00:00]} Kxf7 {[%emt 0:00:03]} 76. Kb3 {[%emt 0:00:00]} Kxf6 {[%emt 0:00:04]} 77. Kxa3 {[%emt 0:00:00]} Kg5 {[%emt 0:00:07]} 78. h4+ {[%emt 0:00:00]} Kxh4 {[%emt 0:00:06] White really could win this.   Weighted Error Value: White=0.16 (very precise) /Black=0.33.  Loses game:     	---       	Black=1      Mistake:       	White=5     	Black=6      Inaccurate:     	White=3     	Black=3      OK:         	White=18    	Black=23     Best:        	White=2     	Black=3      Strong:       	White=1     	Black=1} 1/2-1/2

[Event "Sardinia World Festival-A 2024"]
[Site "Orosei"]
[Date "2024.04.29"]
[Round "3.38"]
[White "Shvedova, Alexandra"]
[Black "Zemach, Nadav"]
[Result "1/2-1/2"]
[ECO "C55"]
[WhiteElo "2203"]
[BlackElo "2396"]
[Annotator "TA"]
[PlyCount "103"]
[EventDate "2024.04.26"]
[EventType "swiss"]
[EventCountry "ITA"]
[SourceTitle "playchess.com"]
[Source "ChessBase"]
[SourceQuality "1"]
[TimeControl "40/5400+30:1800+30"]

{[%evp 10,103,32,31,33,27,32,24,39,22,41,29,37,31,29,30,42,48,47,58,52,48,67,60,90,109,150,109,146,29,102,25,46,29,30,-68,-52,-63,-14,-16,80,86,73,71,88,15,18,14,18,0,0,0,0,0,0,0,0,0,0,0,0,0,0,0,0,0,0,0,0,0,0,0,0,0,0,0,0,0,0,0,1,1,8,8,8,8,8,0,0,0,0,0,0,0,0,0]} 1. e4 {[%emt 0:00:03]} e5 {[%emt 0:00:26]} 2. Nf3 {[%emt 0:00:07]} Nc6 {[%emt 0:00:05]} 3. Bc4 {[%emt 0:00:07]} Nf6 {[%emt 0:00:24]} 4. d3 {[%emt 0:00:11]} h6 {[%emt 0:00:17]} 5. O-O {[%emt 0:00:25]} d6 {[%emt 0:00:08]} 6. c3 {[%emt 0:00:20]} g5 {[%emt 0:00:08]} 7. a4 {[%emt 0:00:23]} Bg7 {[%emt 0:01:37]} 8. a5 {[%emt 0:01:28]} a6 {[%emt 0:00:51] White has an edge.} 9. Nbd2 {[%emt 0:01:24]} O-O {[%emt 0:02:19]} 10. h3 {[%emt 0:12:46]} Ne7 {[%emt 0:05:11]} 11. Re1 {[%emt 0:07:13]} Ng6 {[%emt 0:02:14]} 12. Nf1 {[%emt 0:02:38]} d5 {[%emt 0:05:56]} 13. exd5 {[%emt 0:11:00]} Nxd5 {[%emt 0:00:14]} 14. d4 {[%emt 0:00:09]} exd4 {[%emt 0:03:03]} 15. Nxd4 {[%emt 0:00:20]} Ndf4 {[%emt 0:10:51]} 16. Ng3 {[%emt 0:21:34]} b5 {[%emt 0:17:45]} 17. axb6 {[%emt 0:05:08]} Bb7 {[%emt 0:03:13] Against Qf3} 18. Bxf4 {[%emt 0:07:12]} Nxf4 {[%emt 0:01:13]} 19. Ne4 {[%emt 0:00:20] White is more active.} ({White should try} 19. bxc7 $16 Qxc7 20. Bf1) 19... Bxd4 {[%emt 0:07:07]} (19... Re8 $1 $11 20. Nc5 Bxg2) 20. Qxd4 {[%emt 0:06:50]} ({White should play} 20. cxd4 $16 Bxe4 21. Rxe4 cxb6 22. g3 (22. Bxa6 Qd5 $11) (22. Rxa6 Rxa6 23. Bxa6 Qa8 $14)) 20... Qxd4 $11 {[%emt 0:00:57]} 21. cxd4 {[%emt 0:00:06]} cxb6 {[%emt 0:05:43]} 22. Nf6+ {[%emt 0:01:58]} (22. g3 $11 Nxh3+ 23. Kg2) 22... Kg7 $15 {[%emt 0:02:58]} 23. Nd7 {[%emt 0:00:48]} Rfe8 {[%emt 0:07:45]} (23... Nxg2 $1 $15 {is more appropriate.} 24. Re2 (24. Re7 Rae8 $15) 24... Nf4) 24. Nxb6 {[%emt 0:00:52]} Rad8 {[%emt 0:00:09]} (24... Nxg2 $11 25. Rxe8 Rxe8) 25. Rxe8 $16 {[%emt 0:01:04]} (25. Bxa6 $2 Rxe1+ (25... Bxg2 26. Rxe8 Rxe8 27. h4 $15) 26. Rxe1 Bxa6 $19) 25... Rxe8 {[%emt 0:00:02]} 26. d5 {[%emt 0:01:25][%cal Oa1d1]} ({Much worse is} 26. Bxa6 Bxg2 27. Bc4 Rb8 $15 (27... Nxh3+ $2 {too greedy.} 28. Kxg2 Nf4+ 29. Kf1 $18) (27... Bxh3 28. Ra7 $11)) 26... Rd8 {[%emt 0:00:42]} 27. g3 {[%emt 0:04:08]} (27. Bxa6 Bxa6 28. Rxa6 Rd6 $19) (27. Rd1 $16) 27... Nxh3+ $11 {[%emt 0:01:19] The position is equal.} 28. Kg2 {[%emt 0:00:15]} g4 {[%emt 0:00:06]} 29. Bxa6 {[%emt 0:02:15]} Bxd5+ {[%emt 0:06:41]} 30. Nxd5 {[%emt 0:00:38]} Rxd5 {[%emt 0:00:02][%mdl 4096] Endgame. KRB-KRN} 31. Re1 {[%emt 0:08:07]} Rd2 {[%emt 0:00:17]} 32. Re2 {[%emt 0:00:17]} Rd1 {[%emt 0:00:05]} 33. Bb7 {[%emt 0:00:31]} f5 {[%emt 0:01:47]} 34. Rc2 {[%emt 0:02:49]} h5 {[%emt 0:01:36]} 35. Rc5 {[%emt 0:01:21]} f4 {[%emt 0:07:59]} 36. gxf4 {[%emt 0:01:01]} h4 {[%emt 0:00:46][%cal Od1d2]} 37. Rc7+ {[%emt 0:00:27]} Kf6 {[%emt 0:00:42]} 38. Rc6+ {[%emt 0:00:24]} Ke7 {[%emt 0:01:57]} 39. Rc7+ {[%emt 0:00:10]} Kd8 {[%emt 0:01:34]} 40. Rc8+ {[%emt 0:00:06]} Ke7 {[%emt 0:00:18]} 41. Rc7+ {[%emt 0:30:21]} Kf6 {[%emt 0:05:02]} 42. Rc6+ {[%emt 0:00:00]} Kf7 {[%emt 0:03:44]} 43. Rc7+ {[%emt 0:00:00]} Ke8 {[%emt 0:00:13]} 44. Rc8+ {[%emt 0:00:00]} Kd7 {[%emt 0:06:24]} 45. Rc4 {[%emt 0:00:00] [#] Hoping for Bc8+.} Rd2 {[%emt 0:00:42]} 46. Bc8+ {[%emt 0:00:00]} Kd6 {[%emt 0:00:03]} 47. Bxg4 {[%emt 0:00:00]} Nxf2 {[%emt 0:00:08]} 48. Bf3 {[%emt 0:00:00]} Rxb2 {[%emt 0:01:37]} 49. f5 {[%emt 0:00:00]} h3+ {[%emt 0:08:22]} 50. Kg3 {[%emt 0:00:00]} Ke5 {[%emt 0:00:09]} 51. Rc1 {[%emt 0:00:00]} h2 {[%emt 0:03:23]} 52. Rf1 {[%emt 0:00:00] Weighted Error Value: White=0.17 (very precise) /Black=0.13 (very precise) .  Mistake:       	White=4     	Black=3      Inaccurate:     	---       	Black=3      OK:         	White=21    	Black=21     Best:        	White=6     	Black=2} 1/2-1/2

[Event "Sardinia World Festival-A 2024"]
[Site "Orosei"]
[Date "2024.04.29"]
[Round "3.39"]
[White "Ibrayev, Nurlan"]
[Black "Roesch, Mario"]
[Result "1-0"]
[ECO "D56"]
[WhiteElo "2368"]
[BlackElo "2207"]
[Annotator "TA"]
[PlyCount "112"]
[EventDate "2024.04.26"]
[EventType "swiss"]
[EventCountry "ITA"]
[SourceTitle "playchess.com"]
[Source "ChessBase"]
[SourceQuality "1"]
[TimeControl "40/5400+30:1800+30"]

{[%evp 23,112,9,18,20,19,6,11,6,16,11,18,16,10,8,11,11,18,0,0,0,14,0,0,0,0,0,0,0,0,0,44,0,56,37,54,45,64,60,50,57,174,139,134,116,156,89,89,89,193,193,189,202,207,191,207,207,212,182,174,174,173,189,228,228,235,193,532,493,2451,2443,2345,2203,2021,1668,1003,917,29957,29960,29959,29961,29972,29973,29973,29974,29974,29975,29983,29984,29991,29992,29996]} 1. d4 {[%emt 0:03:55]} d5 {[%emt 0:00:17]} 2. c4 {[%emt 0:00:07]} e6 {[%emt 0:00:06]} 3. Nf3 {[%emt 0:00:47]} Nf6 {[%emt 0:00:06]} 4. Nc3 {[%emt 0:00:19]} Be7 {[%emt 0:00:08]} 5. Bg5 {[%emt 0:00:13]} h6 {[%emt 0:00:11]} 6. Bh4 {[%emt 0:00:21]} O-O {[%emt 0:00:09]} 7. e3 {[%emt 0:00:04]} Ne4 {[%emt 0:00:16]} 8. Bxe7 {[%emt 0:00:09]} Qxe7 {[%emt 0:00:05]} 9. Rc1 {[%emt 0:00:50]} c6 {[%emt 0:00:23]} 10. Bd3 {[%emt 0:00:32]} Nxc3 {[%emt 0:00:08]} 11. Rxc3 {[%emt 0:00:06]} Nd7 {[%emt 0:00:41]} 12. cxd5 {[%emt 0:07:12]} exd5 {[%emt 0:00:05]} 13. O-O {[%emt 0:00:13]} Nf6 {[%emt 0:00:34]} 14. Ne5 {[%emt 0:01:23]} Nd7 {[%emt 0:00:13]} 15. Nxd7 {[%emt 0:03:42] The position is equal.} Bxd7 {[%emt 0:00:06]} 16. Re1 {[%emt 0:07:09]} Be6 {[%emt 0:08:17]} 17. a3 {[%emt 0:01:13]} Rfc8 {[%emt 0:04:30]} 18. Qc2 {[%emt 0:02:10]} Qd6 {[%emt 0:08:49]} 19. Rc1 {[%emt 0:00:42]} Bd7 {[%emt 0:11:20]} 20. b4 {[%emt 0:01:30][%cal Ob4b5]} g6 {[%emt 0:01:04]} 21. Qb2 {[%emt 0:06:59]} b5 {[%emt 0:08:21]} 22. Rc5 {[%emt 0:02:19]} a5 {[%emt 0:11:19]} 23. a4 {[%emt 0:01:06]} axb4 {[%emt 0:02:29]} 24. axb5 {[%emt 0:00:25]} cxb5 {[%emt 0:00:46]} 25. Qxb4 {[%emt 0:03:29] And now Rxc8+ would win.} Rxc5 {[%emt 0:01:53]} 26. dxc5 {[%emt 0:00:16]} Qc6 {[%emt 0:01:00]} 27. Qf4 {[%emt 0:06:54][%cal Oh2h3]} Ra4 {[%emt 0:09:27]} (27... Qa6 $11 28. Bf1 (28. Qxh6 $2 Qa3 $19) 28... Rc8) 28. Qb8+ {[%emt 0:06:33]} (28. Qxh6 Qf6 29. g3 Ra3 $17) 28... Kg7 {[%emt 0:01:57]} 29. Qe5+ $1 {[%emt 0:01:49]} Kg8 {[%emt 0:00:43]} 30. h3 {[%emt 0:01:15]} Ra3 {[%emt 0:07:54]} 31. Be2 {[%emt 0:03:33]} Qa8 {[%emt 0:04:50]} (31... f6 $14 32. Qb2 Ra7) 32. Bf3 {[%emt 0:06:06]} Bc6 {[%emt 0:01:10]} 33. Rd1 {[%emt 0:00:37][%cal Rf3d5] White has more active pieces.} Qe8 {[%emt 0:04:47]} 34. Qxe8+ {[%emt 0:15:11]} (34. Qb2 $142 $1 {[%cal Rb2a3]} Ra7 35. Bxd5) 34... Bxe8 $16 {[%emt 0:00:05]} 35. Rxd5 {[%emt 0:00:04][%mdl 4096] Endgame. KRB-KRB} ({Much worse is} 35. Bxd5 $6 Rc3 $11) 35... Ra1+ {[%emt 0:04:21] [#]} (35... Kf8 $16) 36. Rd1 $1 $18 {[%emt 0:02:55]} Rxd1+ {[%emt 0:00:33]} 37. Bxd1 {[%emt 0:00:02] KB-KB} Kf8 {[%emt 0:04:00] [#]} 38. Kf1 $1 {[%emt 0:01:39]} Ke7 {[%emt 0:01:07]} 39. Bf3 {[%emt 0:04:44] Repels Bc6} b4 {[%emt 0:01:25]} 40. Ke2 {[%emt 0:01:10]} Bb5+ {[%emt 0:00:06]} 41. Kd2 {[%emt 0:30:03]} Ke6 {[%emt 0:31:39]} 42. Bb7 {[%emt 0:09:24]} g5 {[%emt 0:00:00]} 43. g3 {[%emt 0:00:00][%cal Bg2g3,Bg3f4,Bf4f5][%mdl 32]} Bc4 {[%emt 0:00:00]} 44. e4 {[%emt 0:00:00]} f6 $2 {[%emt 0:00:00]} (44... h5 45. Bc8+ Ke7) 45. f4 {[%emt 0:00:00]} gxf4 {[%emt 0:00:00]} (45... Ke7 $142 46. Kc2 gxf4 47. gxf4 f5) 46. gxf4 {[%emt 0:00:00]} Bb5 {[%emt 0:00:00]} 47. Ke3 {[%emt 0:00:00]} Kd7 {[%emt 0:00:00]} 48. Bd5 {[%emt 0:00:00]} Kc7 {[%emt 0:00:00]} 49. Kd4 {[%emt 0:00:00] f5 would now be deadly.} Bf1 {[%emt 0:00:22]} 50. h4 {[%emt 0:00:00] White mates.} Bb5 {[%emt 0:00:05]} 51. f5 {[%emt 0:00:00]} Kd7 {[%emt 0:01:44]} 52. e5 {[%emt 0:00:00]} Ke7 {[%emt 0:01:46]} 53. c6 {[%emt 0:00:00][%cal Bc5c6,Bc6c7][%mdl 32]} b3 {[%emt 0:01:01]} 54. c7 {[%emt 0:00:00]} ({Weaker is} 54. Bxb3 Bxc6 55. Bd5 Ba4 $14) 54... Bd7 {[%emt 0:00:18]} 55. Bxb3 {[%emt 0:00:00]} Bxf5 {[%emt 0:03:36] [#]} 56. e6 $1 {[%emt 0:00:00][%mdl 512]} Kd6 {[%emt 0:02:18] Weighted Error Value: White=0.06 (flawless) /Black=0.40.  Mistake:       	White=1     	Black=5      Inaccurate:     	White=1     	Black=1      OK:         	White=13    	Black=11     Best:        	White=1     	Black=3      Strong:       	White=2     	---} (56... Bxe6 57. Bxe6) 1-0

[Event "Sardinia World Festival-A 2024"]
[Site "Orosei"]
[Date "2024.04.29"]
[Round "3.40"]
[White "Corvi, Marco"]
[Black "Savitha Shri B"]
[Result "1/2-1/2"]
[ECO "A06"]
[WhiteElo "2185"]
[BlackElo "2363"]
[Annotator "RC"]
[PlyCount "121"]
[EventDate "2024.04.26"]
[EventType "swiss"]
[EventCountry "ITA"]
[SourceTitle "playchess.com"]
[Source "ChessBase"]
[SourceQuality "1"]
[TimeControl "40/5400+30:1800+30"]

1. Nf3 {[%emt 1:31:00]} Nf6 {[%emt 0:00:40]} 2. b3 {[%emt 0:00:00]} c5 {[%emt 0:01:20]} 3. Bb2 {[%emt 0:00:00]} Nc6 {[%emt 0:00:22]} 4. e3 {[%emt 0:00:00]} d5 {[%emt 0:03:57]} 5. Bb5 {[%emt 0:00:00]} Bg4 {[%emt 0:02:14]} 6. h3 {[%emt 0:00:00]} Bh5 {[%emt 0:00:27]} 7. g4 {[%emt 0:00:00]} Bg6 {[%emt 0:00:15]} 8. Ne5 {[%emt 0:00:00]} Qc7 {[%emt 0:03:45]} 9. d3 {[%emt 0:00:00]} e6 {[%emt 0:06:01]} 10. h4 {[%emt 0:00:00]} Bd6 {[%emt 0:08:22]} 11. Bxc6+ {[%emt 0:00:00]} bxc6 {[%emt 0:05:17]} 12. f4 {[%emt 0:00:00]} d4 {[%emt 0:13:57]} 13. h5 {[%emt 0:00:00]} Bxe5 {[%emt 0:01:10]} 14. fxe5 {[%emt 0:00:00]} Qxe5 {[%emt 0:02:37]} 15. Qf3 {[%emt 0:00:00]} O-O {[%emt 0:09:05]} 16. Na3 {[%emt 0:00:00]} h6 {[%emt 0:07:59]} 17. hxg6 {[%emt 0:00:00]} fxg6 {[%emt 0:01:30]} 18. Nc4 {[%emt 0:00:00]} Qg5 {[%emt 0:02:29]} 19. O-O-O {[%emt 0:00:00]} Nxg4 {[%emt 0:01:48]} 20. Qxc6 {[%emt 0:00:00]} Qd5 {[%emt 0:01:54]} 21. Qa6 {[%emt 0:00:00]} Nf2 {[%emt 0:01:58]} 22. e4 {[%emt 0:00:00]} Qg5+ {[%emt 0:01:02]} 23. Kb1 {[%emt 0:00:00]} Nxh1 {[%emt 0:00:46]} 24. Qxe6+ {[%emt 0:00:00]} Kh7 {[%emt 0:00:19]} 25. Rxh1 {[%emt 0:00:00]} Qg2 {[%emt 0:07:22]} 26. Rc1 {[%emt 0:00:12]} Rf1 {[%emt 0:00:56]} 27. Rxf1 {[%emt 0:02:53]} Qxf1+ {[%emt 0:00:04]} 28. Bc1 {[%emt 0:00:04]} Rf8 {[%emt 0:02:31]} 29. Ne5 {[%emt 0:03:59]} Rf6 {[%emt 0:02:28]} 30. Qe7 {[%emt 0:00:29]} c4 {[%emt 0:03:51]} 31. dxc4 {[%emt 0:00:54]} Rf2 {[%emt 0:02:54]} 32. Nd3 {[%emt 0:01:58]} Rh2 {[%emt 0:00:33]} 33. Qxa7 {[%emt 0:03:40]} Qe2 {[%emt 0:02:13]} 34. Nb4 {[%emt 0:00:20]} Qe1 {[%emt 0:00:33]} 35. Qa3 {[%emt 0:01:25]} Qc3 {[%emt 0:01:28]} 36. e5 {[%emt 0:00:40]} Re2 {[%emt 0:00:20]} 37. e6 {[%emt 0:00:41]} d3 {[%emt 0:01:14]} 38. cxd3 {[%emt 0:00:37]} Rxe6 {[%emt 0:00:03]} 39. Nc2 {[%emt 0:00:33]} Qxd3 {[%emt 0:00:11]} 40. Qb2 {[%emt 0:00:31]} h5 {[%emt 0:01:39]} 41. Qd4 {[%emt 0:01:37]} Qf5 {[%emt 0:02:57]} 42. a4 {[%emt 0:02:36]} Re2 {[%emt 0:04:23]} 43. Qc3 {[%emt 0:00:34]} h4 {[%emt 0:01:46]} 44. Bb2 {[%emt 0:02:26]} Re7 {[%emt 0:04:29]} 45. Ka2 {[%emt 0:00:41]} h3 {[%emt 0:01:28]} 46. Nd4 {[%emt 0:02:02]} Qh5 {[%emt 0:01:18]} 47. Ne6 {[%emt 0:02:19]} h2 {[%emt 0:12:12]} 48. Nxg7 {[%emt 0:00:10]} Qe2 {[%emt 0:00:15]} 49. Qh3+ {[%emt 0:08:24]} Kg8 {[%emt 0:00:11]} 50. Ne8 {[%emt 0:01:04]} Re5 {[%emt 0:02:49]} 51. Ka3 {[%emt 0:05:04]} Kf7 {[%emt 0:03:53]} 52. Nd6+ {[%emt 0:03:15]} Ke7 {[%emt 0:00:30]} 53. Bxe5 {[%emt 0:01:47]} Qxe5 {[%emt 0:00:03]} 54. Nc8+ {[%emt 0:03:04]} Kd8 {[%emt 0:00:44]} 55. Nb6 {[%emt 0:00:33]} Qd6+ {[%emt 0:00:48]} 56. b4 {[%emt 0:00:07]} h1=Q {[%emt 0:00:55]} 57. Qxh1 {[%emt 0:00:16]} Qd3+ {[%emt 0:00:03]} 58. Kb2 {[%emt 0:00:21]} Qd2+ {[%emt 0:00:03]} 59. Kb3 {[%emt 0:00:18]} Qd3+ {[%emt 0:00:04]} 60. Kb2 {[%emt 0:00:09]} Qd2+ {[%emt 0:00:03]} 61. Kb3 {[%emt 0:02:01]} 1/2-1/2